bitfinex/quotes_BTCUSD_20240902
["timestamp","ask_amount","ask_price","bid_price","bid_amount"]
[1725313868042,1.88713616,59075.0,59074.0,0.0979006]
[1725313868487,1.91770916,59075.0,59074.0,0.0979006]
[1725313868720,1.94427255,59075.0,59074.0,0.0979006]
[1725313868942,1.90972255,59075.0,59074.0,0.0979006]
[1725313869133,1.78826055,59075.0,59074.0,0.0979006]
[1725313869618,1.88841955,59075.0,59074.0,0.0979006]
[1725313869839,1.78826055,59075.0,59074.0,0.0979006]
[1725313870331,1.89048455,59075.0,59074.0,0.0979006]
[1725313870521,1.89048455,59075.0,59070.0,0.0968]
[1725313870522,1.218847,59072.0,59070.0,0.0968]
[1725313870739,1.318847,59072.0,59070.0,0.0968]
[1725313871204,1.047992,59072.0,59071.0,0.2306]
[1725313871634,1.047992,59072.0,59071.0,0.27284545]
[1725313872291,1.059992,59072.0,59071.0,0.27284545]
[1725313872513,0.803137,59072.0,59071.0,0.27284545]
[1725313872728,0.803137,59072.0,59071.0,0.2306]
[1725313872729,0.791137,59072.0,59071.0,0.2306]
[1725313872971,0.777137,59072.0,59071.0,0.2306]
[1725313873214,0.685137,59072.0,59071.0,0.27284545]
[1725313873442,0.414282,59072.0,59071.0,0.2306]
[1725313873653,0.414282,59072.0,59071.0,0.27284545]
[1725313873870,0.406282,59072.0,59071.0,0.27284545]
[1725313874083,0.141427,59072.0,59071.0,0.27284545]
[1725313874515,0.241427,59072.0,59071.0,0.27284545]
[1725313874727,0.250427,59072.0,59071.0,0.27284545]
[1725313875166,0.1,59072.0,59071.0,0.27284545]
[1725313875379,0.103,59072.0,59071.0,0.27284545]
[1725313875599,0.005,59072.0,59071.0,0.27284545]
[1725313875817,0.105,59072.0,59071.0,0.27284545]
[1725313876645,0.1,59072.0,59071.0,0.27284545]
[1725313876852,0.12656339,59075.0,59072.0,0.2389]
[1725313877062,0.12656339,59075.0,59073.0,0.10888514]
[1725313877269,0.135408,59081.0,59077.0,0.11906616]
[1725313877478,0.135407,59081.0,59078.0,0.0361]
[1725313877714,0.135407,59081.0,59078.0,0.07869016]
[1725313877928,0.16196485,59081.0,59079.0,0.0361]
[1725313878150,0.02655785,59081.0,59079.0,0.0351]
[1725313878357,0.02655785,59081.0,59080.0,0.29705126]
[1725313878790,0.02855785,59081.0,59080.0,0.29405126]
[1725313879005,0.02655785,59081.0,59080.0,0.29405126]
[1725313879462,0.02855785,59081.0,59080.0,0.29405126]
[1725313879670,0.002,59081.0,59080.0,0.3107433]
[1725313879896,0.001,59081.0,59080.0,0.3107433]
[1725313880326,0.002,59081.0,59080.0,0.3107433]
[1725313881021,0.003,59081.0,59080.0,0.3117433]
[1725313881212,0.003,59081.0,59080.0,0.3469433]
[1725313881921,0.02655463,59087.0,59083.0,0.52527316]
[1725313882123,0.02655463,59087.0,59083.0,0.83127816]
[1725313882350,0.02655463,59087.0,59083.0,0.88751819]
[1725313882774,0.02655463,59087.0,59083.0,0.89151818]
[1725313882976,0.02655463,59087.0,59083.0,0.62371318]
[1725313883421,0.02337163,59087.0,59086.0,0.406186]
[1725313883627,0.02337163,59087.0,59086.0,0.80604316]
[1725313883827,0.270698,59107.0,59090.0,0.270771]
[1725313884037,0.135362,59101.0,59093.0,0.25444416]
[1725313884476,0.1065,59120.0,59100.0,0.11906616]
[1725313884477,0.270686,59109.0,59100.0,0.11906616]
[1725313884688,0.270686,59109.0,59094.0,0.056137]
[1725313884689,0.135356,59104.0,59101.0,0.0332]
[1725313884896,0.135358,59103.0,59101.0,0.07525359]
[1725313885109,0.270705,59105.0,59101.0,0.0332]
[1725313885110,0.135359,59102.0,59101.0,0.0332]
[1725313885329,0.50540786,59119.0,59093.0,0.280758]
[1725313885330,0.270651,59117.0,59102.0,0.11806616]
[1725313885539,0.270682,59110.0,59107.0,0.11806616]
[1725313885766,0.135346,59108.0,59107.0,0.11806616]
[1725313885986,0.135346,59108.0,59099.0,0.886094]
[1725313885987,0.135346,59108.0,59102.0,0.19839604]
[1725313886208,0.270647,59118.0,59107.0,0.19839604]
[1725313886431,0.270579,59133.0,59105.0,0.13535]
[1725313886646,0.270579,59133.0,59108.0,0.25440197]
[1725313886647,0.270637,59120.0,59108.0,0.25440197]
[1725313886874,0.135338,59112.0,59106.0,0.05602465]
[1725313887101,0.135338,59112.0,59109.0,0.05599657]
[1725313887329,0.270637,59120.0,59108.0,0.33374004]
[1725313887535,0.135327,59116.0,59110.0,0.05598721]
[1725313887756,0.135329,59115.0,59110.0,0.0332]
[1725313887896,0.135329,59115.0,59112.0,0.0332]
[1725313888166,0.007,59117.0,59113.0,0.05595914]
[1725313888167,0.135327,59116.0,59113.0,0.05595914]
[1725313888331,0.007,59117.0,59114.0,0.0332]
[1725313888532,0.13532,59119.0,59115.0,0.05915629]
[1725313888758,0.008,59116.0,59115.0,0.05915629]
[1725313888974,0.008,59116.0,59115.0,0.23130275]
[1725313889182,0.135314,59122.0,59115.0,0.09597375]
[1725313889448,0.135314,59122.0,59116.0,0.0402]
[1725313889640,0.270597,59129.0,59117.0,0.175523]
[1725313889641,0.135307,59125.0,59117.0,0.175523]
[1725313889833,0.270609,59126.0,59118.0,0.175522]
[1725313890044,0.026538,59124.0,59119.0,0.135319]
[1725313890272,0.026538,59124.0,59120.0,0.135317]
[1725313890484,0.026538,59124.0,59123.0,0.0402]
[1725313890953,0.000816,59127.0,59123.0,0.0556989]
[1725313891159,0.000816,59127.0,59126.0,0.23859604]
[1725313891597,0.000816,59127.0,59126.0,0.29426688]
[1725313891812,0.000816,59127.0,59126.0,0.42957088]
[1725313892049,0.000816,59127.0,59126.0,0.42857088]
[1725313892272,0.001816,59127.0,59126.0,0.42857088]
[1725313892480,0.000816,59127.0,59126.0,0.42857088]
[1725313892901,0.000816,59127.0,59126.0,0.43257088]
[1725313893118,0.000816,59127.0,59126.0,0.98378688]
[1725313893547,0.000816,59127.0,59126.0,0.71317888]
[1725313893745,0.000816,59127.0,59126.0,1.02678688]
[1725313893982,0.000816,59127.0,59126.0,1.03178688]
[1725313894406,0.000816,59127.0,59126.0,1.03378688]
[1725313894578,0.000816,59127.0,59126.0,1.02778688]
[1725313894839,0.000816,59127.0,59126.0,1.29339488]
[1725313895047,0.001816,59127.0,59126.0,1.04678688]
[1725313895253,0.001816,59127.0,59126.0,1.31739488]
[1725313895474,0.001816,59127.0,59126.0,1.29339488]
[1725313895475,0.000816,59127.0,59126.0,1.29339488]
[1725313895648,0.000816,59127.0,59126.0,1.03678688]
[1725313896035,0.000816,59127.0,59126.0,1.04678688]
[1725313896036,0.001816,59127.0,59126.0,1.04678688]
[1725313896253,0.001816,59127.0,59126.0,0.77617888]
[1725313896749,0.001816,59127.0,59126.0,1.04878688]
[1725313896985,0.001816,59127.0,59126.0,1.03368338]
[1725313897440,0.001816,59127.0,59126.0,0.77707538]
[1725313899857,0.001816,59127.0,59126.0,0.50646738]
[1725313900056,0.001816,59127.0,59126.0,0.68646738]
[1725313900259,0.001816,59127.0,59126.0,0.51816338]
[1725313900460,0.137117,59127.0,59126.0,0.51816338]
[1725313900671,0.137117,59127.0,59124.0,0.19839604]
[1725313900672,0.135304,59126.0,59124.0,0.19839604]
[1725313900907,0.272419,59127.0,59124.0,0.19839604]
[1725313900908,0.135306,59125.0,59124.0,0.19839604]
[1725313901763,0.135306,59125.0,59124.0,0.21239604]
[1725313901968,0.135306,59125.0,59124.0,0.22639604]
[1725313902387,0.135306,59125.0,59124.0,0.21239604]
[1725313902792,0.405919,59125.0,59124.0,0.21239604]
[1725313903002,0.676532,59125.0,59124.0,0.21239604]
[1725313903414,0.676532,59125.0,59124.0,0.19839604]
[1725313903811,0.676532,59125.0,59124.0,0.009]
[1725313903812,0.677532,59125.0,59124.0,0.009]
[1725313904040,0.135317,59120.0,59119.0,0.19839604]
[1725313904513,0.405952,59120.0,59119.0,0.19839604]
[1725313905181,0.406952,59120.0,59119.0,0.20739604]
[1725313905387,0.407952,59120.0,59119.0,0.21039604]
[1725313906228,0.678587,59120.0,59119.0,0.21039604]
[1725313906769,0.002,59120.0,59119.0,0.21039604]
[1725313907197,0.137317,59120.0,59119.0,0.21039604]
[1725313907396,0.137317,59120.0,59119.0,0.012]
[1725313908028,0.002,59120.0,59119.0,0.012]
[1725313908235,0.002,59120.0,59119.0,0.05845785]
[1725313908404,0.002,59120.0,59119.0,0.012]
[1725313908779,0.002,59120.0,59119.0,0.05935435]
[1725313908981,0.002,59120.0,59119.0,0.0128965]
[1725313909188,0.002,59120.0,59119.0,0.05935435]
[1725313909397,0.002,59120.0,59119.0,0.1482165]
[1725313909605,0.002,59120.0,59119.0,0.39307039]
[1725313909776,0.002,59120.0,59119.0,0.66371039]
[1725313910646,0.3994699,59128.0,59121.0,0.135314]
[1725313910647,0.16259711,59128.0,59121.0,0.135314]
[1725313910879,0.135303,59127.0,59121.0,0.135314]
[1725313911082,0.135303,59127.0,59122.0,0.04642978]
[1725313911705,0.135304,59126.0,59122.0,0.04642978]
[1725313912590,0.135304,59126.0,59122.0,0.04742978]
[1725313913692,0.135304,59126.0,59122.0,0.05442978]
[1725313913907,0.135304,59126.0,59122.0,0.04642978]
[1725313914125,0.05383329,59128.0,59122.0,0.18174278]
[1725313914357,0.001,59126.0,59122.0,0.18474278]
[1725313914761,0.002,59126.0,59122.0,0.19174278]
[1725313914919,0.002,59126.0,59122.0,0.04942978]
[1725313914920,0.001,59126.0,59122.0,0.04942978]
[1725313915250,0.32443629,59128.0,59122.0,0.04942978]
[1725313915251,0.135311,59123.0,59122.0,0.04642978]
[1725313915659,0.135311,59123.0,59122.0,0.002]
[1725313915808,0.135311,59123.0,59122.0,0.05552507]
[1725313916014,0.135311,59123.0,59122.0,0.008]
[1725313916220,0.135311,59123.0,59122.0,0.05552507]
[1725313916428,0.135311,59123.0,59122.0,0.008]
[1725313916613,0.135311,59123.0,59122.0,0.05552507]
[1725313916806,0.135311,59123.0,59122.0,0.006]
[1725313917059,0.135311,59123.0,59122.0,0.04752507]
[1725313917236,0.136311,59123.0,59122.0,0.003]
[1725313917433,0.002,59123.0,59122.0,0.05652507]
[1725313917637,0.001,59123.0,59122.0,0.006]
[1725313917836,0.001,59123.0,59122.0,0.04752507]
[1725313918040,0.003,59123.0,59122.0,0.003]
[1725313918239,0.003,59123.0,59122.0,0.05052507]
[1725313918440,0.24131,59124.0,59119.0,0.0008965]
[1725313918614,0.001,59123.0,59122.0,0.04752507]
[1725313918854,0.137311,59123.0,59122.0,0.004]
[1725313919056,0.406933,59123.0,59122.0,0.05152507]
[1725313919255,0.406933,59123.0,59122.0,0.004]
[1725313920071,0.406933,59123.0,59119.0,0.0008965]
[1725313920072,0.135317,59121.0,59119.0,0.0008965]
[1725313920277,0.135317,59120.0,59119.0,0.0038965]
[1725313920960,0.135317,59120.0,59119.0,0.0008965]
[1725313921577,0.136317,59120.0,59119.0,0.0048965]
[1725313921915,0.137317,59120.0,59119.0,0.0078965]
[1725313924026,0.781387,59120.0,59119.0,0.0078965]
[1725313924216,0.510752,59120.0,59119.0,0.0078965]
[1725313924964,0.53728917,59120.0,59119.0,0.0078965]
[1725313926003,0.12933717,59120.0,59119.0,0.0078965]
[1725313926240,0.53528917,59120.0,59119.0,0.0078965]
[1725313927142,0.26465417,59120.0,59119.0,0.0078965]
[1725313927315,0.26465417,59120.0,59119.0,0.04844964]
[1725313927455,0.26565417,59120.0,59119.0,0.0048965]
[1725313927655,0.26665417,59120.0,59119.0,0.05144964]
[1725313927864,0.26665417,59120.0,59119.0,0.0038965]
[1725313928055,0.26565417,59120.0,59119.0,0.04844964]
[1725313928285,0.26665417,59120.0,59119.0,0.0048965]
[1725313928530,0.26665417,59120.0,59119.0,0.05244964]
[1725313928730,0.26665417,59120.0,59119.0,0.0048965]
[1725313928950,0.26665417,59120.0,59119.0,0.05244964]
[1725313929154,0.26665417,59120.0,59119.0,0.0048965]
[1725313929354,0.26665417,59120.0,59119.0,0.05244964]
[1725313929473,0.26765417,59120.0,59119.0,0.0098965]
[1725313929681,0.26765417,59120.0,59119.0,0.05744964]
[1725313929912,0.26765417,59120.0,59119.0,0.0098965]
[1725313930135,0.26765417,59120.0,59119.0,0.05744964]
[1725313930312,0.26765417,59120.0,59119.0,0.0098965]
[1725313930520,0.26765417,59120.0,59119.0,0.05744964]
[1725313930774,0.26765417,59120.0,59119.0,0.0098965]
[1725313930929,0.26765417,59120.0,59119.0,0.05744964]
[1725313931147,0.26765417,59120.0,59119.0,0.0098965]
[1725313931678,0.26765417,59120.0,59119.0,0.05744964]
[1725313931901,0.26765417,59120.0,59119.0,0.0098965]
[1725313932106,0.26765417,59120.0,59119.0,0.05744964]
[1725313932314,0.26765417,59120.0,59119.0,0.0098965]
[1725313932559,0.26765417,59120.0,59119.0,0.05744964]
[1725313932776,0.26765417,59120.0,59119.0,0.0098965]
[1725313932955,0.26765417,59120.0,59119.0,0.05744964]
[1725313933192,0.26765417,59120.0,59119.0,0.0098965]
[1725313933420,0.26765417,59120.0,59119.0,0.05744964]
[1725313933659,0.02953717,59120.0,59119.0,0.05744964]
[1725313936956,0.02953717,59120.0,59119.0,0.19276964]
[1725313937174,0.02953717,59120.0,59119.0,0.05744964]
[1725313937423,0.02953717,59120.0,59119.0,0.19276964]
[1725313937592,0.02953717,59120.0,59119.0,0.05744964]
[1725313938344,0.02953717,59120.0,59119.0,0.19276964]
[1725313938964,0.02953717,59120.0,59119.0,0.05744964]
[1725313939482,0.02953717,59120.0,59119.0,0.46340964]
[1725313940148,0.02953717,59120.0,59119.0,0.73404964]
[1725313940356,0.02953717,59120.0,59119.0,0.73974964]
[1725313941772,0.003,59120.0,59119.0,0.73974964]
[1725313942587,0.003,59120.0,59119.0,1.01038964]
[1725313943784,0.003,59120.0,59119.0,1.06114927]
[1725313944207,0.003,59120.0,59119.0,1.01038964]
[1725313944354,0.003,59120.0,59119.0,1.06114927]
[1725313945003,0.003,59120.0,59119.0,1.08414927]
[1725313945228,0.003,59120.0,59119.0,1.03638964]
[1725313945665,0.003,59120.0,59119.0,1.1126027]
[1725313945900,0.003,59120.0,59119.0,1.03638964]
[1725313946136,0.002,59120.0,59119.0,1.03138964]
[1725313946388,0.002,59120.0,59119.0,1.13300705]
[1725313946612,0.002815,59120.0,59119.0,1.25199273]
[1725313946838,0.002815,59120.0,59119.0,1.25199533]
[1725313947060,0.003815,59120.0,59119.0,1.15437532]
[1725313947264,0.003815,59120.0,59119.0,1.42101532]
[1725313947265,0.001815,59120.0,59119.0,1.42101532]
[1725313947491,0.002815,59120.0,59119.0,1.43701532]
[1725313947961,0.002815,59120.0,59119.0,1.43501532]
[1725313948182,0.002815,59120.0,59119.0,1.43701532]
[1725313948396,0.002815,59120.0,59119.0,1.43501532]
[1725313948618,0.002815,59120.0,59119.0,1.53701532]
[1725313949115,0.002815,59120.0,59119.0,1.5497349]
[1725313949340,0.002815,59120.0,59119.0,1.80765532]
[1725313949551,0.002815,59120.0,59119.0,1.84158532]
[1725313949756,0.002815,59120.0,59119.0,1.8543049]
[1725313950167,0.001815,59120.0,59119.0,1.83758532]
[1725313950378,0.000815,59120.0,59119.0,1.82358532]
[1725313950834,0.1379,59147.0,59143.0,0.135265]
[1725313951058,0.1092,59146.0,59143.0,0.45312367]
[1725313951305,0.1092,59146.0,59143.0,0.72365367]
[1725313951572,0.24817,59144.0,59143.0,0.72365367]
[1725313952005,0.11737,59144.0,59143.0,0.72365367]
[1725313953079,0.11737,59144.0,59143.0,0.73565367]
[1725313953561,0.11737,59144.0,59143.0,0.85463935]
[1725313953562,0.00817,59144.0,59143.0,0.85463935]
[1725313954248,0.00817,59144.0,59143.0,0.86663935]
[1725313954717,0.00817,59144.0,59143.0,0.85463935]
[1725313955141,0.00817,59144.0,59143.0,0.86863935]
[1725313957401,0.00817,59144.0,59143.0,0.89163935]
[1725313957856,0.00817,59144.0,59143.0,1.17026935]
[1725313959194,0.00817,59144.0,59143.0,1.15826935]
[1725313959676,0.00817,59144.0,59143.0,1.17226935]
[1725313961096,0.00817,59144.0,59143.0,1.44279935]
[1725313961318,0.00817,59144.0,59143.0,1.54279935]
[1725313961755,0.00817,59144.0,59143.0,1.55299935]
[1725313962300,0.00817,59144.0,59143.0,1.55499935]
[1725313962510,0.00817,59144.0,59143.0,1.42581367]
[1725313962725,0.00817,59144.0,59143.0,1.54479935]
[1725313963392,0.00817,59144.0,59143.0,1.55499935]
[1725313964103,0.00817,59144.0,59143.0,1.63401974]
[1725313968820,0.00817,59144.0,59143.0,1.63201974]
[1725313969029,0.1036,59166.0,59163.0,0.270438]
[1725313969261,0.1036,59166.0,59156.0,0.280668]
[1725313969262,0.1036,59166.0,59164.0,0.38063695]
[1725313970659,0.1046,59166.0,59164.0,0.38063695]
[1725313970887,0.1056,59166.0,59164.0,0.38063695]
[1725313971118,0.1046,59166.0,59164.0,0.38063695]
[1725313971328,0.1066,59166.0,59165.0,0.135215]
[1725313971554,0.1066,59166.0,59164.0,0.04741588]
[1725313971555,0.379015,59165.0,59164.0,0.04741588]
[1725313971774,0.1106,59160.0,59159.0,0.135228]
[1725313972056,0.2438,59160.0,59159.0,0.135228]
[1725313972275,0.2438,59160.0,59159.0,0.1826906]
[1725313974151,0.2438,59160.0,59159.0,0.1866906]
[1725313974566,0.2438,59160.0,59159.0,0.1886906]
[1725313974989,0.2438,59160.0,59159.0,0.0534626]
[1725313975402,0.2438,59160.0,59159.0,0.1886906]
[1725313975622,0.2438,59160.0,59159.0,0.0534626]
[1725313976454,0.379026,59160.0,59159.0,0.0534626]
[1725313976867,0.649479,59160.0,59159.0,0.0534626]
[1725313977900,0.379026,59160.0,59159.0,0.0534626]
[1725313980409,0.2438,59160.0,59159.0,0.1886906]
[1725313980816,0.2438,59160.0,59159.0,0.4591476]
[1725313982633,0.244615,59160.0,59159.0,0.4591476]
[1725313985384,0.02651842,59161.0,59160.0,0.405679]
[1725313985385,0.00688062,59161.0,59160.0,0.405679]
[1725313985612,0.135215,59165.0,59161.0,0.135223]
[1725313985819,0.135215,59165.0,59162.0,0.00338005]
[1725313986039,0.02,59170.0,59165.0,0.135214]
[1725313986040,0.143376,59169.0,59165.0,0.135214]
[1725313986258,0.143376,59169.0,59166.0,0.0473972]
[1725313986883,0.00817,59169.0,59166.0,0.0473972]
[1725313987147,0.143376,59169.0,59166.0,0.135211]
[1725313987375,0.143376,59169.0,59167.0,0.04722119]
[1725313987589,0.01017,59169.0,59167.0,0.18243119]
[1725313988024,0.01017,59169.0,59167.0,0.04722119]
[1725313988244,0.00917,59169.0,59167.0,0.04722119]
[1725313991009,0.242,59168.0,59167.0,0.18243119]
[1725313992409,0.242,59168.0,59167.0,0.45285219]
[1725313997689,0.242,59168.0,59167.0,0.04722119]
[1725313997839,0.242,59168.0,59167.0,0.18243119]
[1725313998048,0.242,59168.0,59167.0,0.45285219]
[1725313999332,0.242,59168.0,59167.0,0.18243119]
[1725314000349,0.242,59168.0,59167.0,0.04722119]
[1725314000667,0.242,59168.0,59167.0,0.13521]
[1725314000881,0.242,59168.0,59167.0,0.18243119]
[1725314003365,0.242,59168.0,59167.0,0.04722119]
[1725314003784,0.242,59168.0,59166.0,0.135212]
[1725314003990,0.242,59168.0,59167.0,0.04722119]
[1725314005499,0.241,59168.0,59167.0,0.04722119]
[1725314005880,0.242,59168.0,59165.0,0.135214]
[1725314006099,0.377208,59168.0,59167.0,0.04722119]
[1725314006298,0.377208,59168.0,59165.0,0.135214]
[1725314006503,0.377208,59168.0,59167.0,0.04722119]
[1725314006707,0.376208,59168.0,59163.0,0.270437]
[1725314006916,0.377208,59168.0,59167.0,0.04722119]
[1725314007122,0.377208,59168.0,59166.0,0.0008965]
[1725314007339,0.377208,59168.0,59167.0,0.04722119]
[1725314007549,0.26932966,59168.0,59167.0,0.04722119]
[1725314009076,0.26832966,59168.0,59167.0,0.04722119]
[1725314009507,0.26932966,59168.0,59167.0,0.04722119]
[1725314009984,0.26832966,59168.0,59167.0,0.04722119]
[1725314010208,0.26932966,59168.0,59167.0,0.04722119]
[1725314012194,0.94536966,59168.0,59167.0,0.04722119]
[1725314012609,0.405631,59167.0,59166.0,0.0008965]
[1725314012787,0.514831,59167.0,59166.0,0.0008965]
[1725314014070,0.652131,59167.0,59166.0,0.0008965]
[1725314014902,0.653131,59167.0,59166.0,0.0008965]
[1725314016746,0.923552,59167.0,59166.0,0.0008965]
[1725314017804,0.653131,59167.0,59166.0,0.0008965]
[1725314023388,0.933552,59167.0,59166.0,0.0008965]
[1725314023594,1.223973,59167.0,59166.0,0.0008965]
[1725314024216,1.34279123,59167.0,59166.0,0.0008965]
[1725314024627,1.44279123,59167.0,59166.0,0.0008965]
[1725314025287,1.71321223,59167.0,59166.0,0.0008965]
[1725314026757,1.71521223,59167.0,59166.0,0.0008965]
[1725314026964,1.71321223,59167.0,59166.0,0.0008965]
[1725314028338,1.594394,59167.0,59166.0,0.0008965]
[1725314028545,0.648581,59145.0,59144.0,0.0008965]
[1725314028712,0.919102,59145.0,59144.0,0.0008965]
[1725314029377,0.94562815,59145.0,59144.0,0.0008965]
[1725314030577,0.94562815,59145.0,59144.0,0.0048965]
[1725314030809,0.95348156,59145.0,59144.0,0.0008965]
[1725314031260,0.96348156,59145.0,59144.0,0.0048965]
[1725314031705,0.96348156,59145.0,59144.0,0.0068965]
[1725314032818,1.23400256,59145.0,59144.0,0.0068965]
[1725314036476,1.25400256,59145.0,59144.0,0.0068965]
[1725314037178,1.64334179,59145.0,59144.0,0.0068965]
[1725314037694,1.74334179,59145.0,59144.0,0.0068965]
[1725314038157,1.74334179,59145.0,59144.0,0.0048965]
[1725314038380,1.74734179,59145.0,59144.0,0.0008965]
[1725314038827,1.75034179,59145.0,59144.0,0.0018965]
[1725314039761,1.74634179,59145.0,59144.0,0.0018965]
[1725314040018,1.75834179,59145.0,59144.0,0.0028965]
[1725314040446,1.75534179,59145.0,59144.0,0.0018965]
[1725314040450,1.75834179,59145.0,59144.0,0.0028965]
[1725314041197,1.74634179,59145.0,59144.0,0.0018965]
[1725314041441,1.74634179,59145.0,59144.0,0.0028965]
[1725314041442,1.75834179,59145.0,59144.0,0.0028965]
[1725314041899,1.76034179,59145.0,59144.0,0.0028965]
[1725314044141,1.87285579,59145.0,59144.0,0.0028965]
[1725314044353,1.76034179,59145.0,59144.0,0.0028965]
[1725314044559,1.36900256,59145.0,59144.0,0.0028965]
[1725314045606,1.63952356,59145.0,59144.0,0.0028965]
[1725314047977,1.31182703,59145.0,59144.0,0.0028965]
[1725314048381,1.44708703,59145.0,59144.0,0.0028965]
[1725314049824,1.11834915,59145.0,59144.0,0.0028965]
[1725314050034,0.84782815,59145.0,59144.0,0.0028965]
[1725314050653,0.84782815,59145.0,59144.0,0.05070921]
[1725314050886,0.14152615,59145.0,59144.0,0.2386965]
[1725314051316,0.14152615,59145.0,59144.0,0.28650921]
[1725314051675,0.13852615,59145.0,59144.0,0.28550921]
[1725314052243,0.17678615,59145.0,59144.0,0.28650921]
[1725314052576,0.17978615,59145.0,59144.0,0.28650921]
[1725314053023,0.16778615,59145.0,59144.0,0.28550921]
[1725314053227,0.16778615,59145.0,59144.0,0.28650921]
[1725314053581,0.17578615,59145.0,59144.0,0.28650921]
[1725314053778,0.16778615,59145.0,59144.0,0.28550921]
[1725314053982,0.16178615,59145.0,59144.0,0.28450921]
[1725314054182,0.16878615,59145.0,59144.0,0.28450921]
[1725314054975,0.16960215,59145.0,59144.0,0.28450921]
[1725314055397,0.03434215,59145.0,59144.0,0.28450921]
[1725314055761,0.01,59148.0,59144.0,0.17520921]
[1725314055974,0.002,59170.0,59144.0,0.17520921]
[1725314055975,0.01,59160.0,59156.0,0.135234]
[1725314056182,0.01,59160.0,59157.0,0.00338048]
[1725314056391,0.01,59160.0,59157.0,0.05107168]
[1725314056603,0.145227,59160.0,59157.0,0.05107168]
[1725314056825,0.01,59160.0,59157.0,0.0476912]
[1725314057049,0.03,59160.0,59157.0,0.0476912]
[1725314057258,0.023,59160.0,59158.0,0.00338044]
[1725314057464,0.01,59159.0,59158.0,0.04768186]
[1725314057911,0.01,59159.0,59158.0,0.04651519]
[1725314058353,0.01,59159.0,59156.0,0.1386135]
[1725314058558,0.01,59159.0,59158.0,0.05351519]
[1725314058766,0.01,59159.0,59157.0,0.04652453]
[1725314058989,0.12,59166.0,59155.0,0.1018]
[1725314058990,0.01,59163.0,59155.0,0.1018]
[1725314059232,0.01,59166.0,59162.0,0.135221]
[1725314059435,0.266027,59167.0,59163.0,0.1072]
[1725314059638,0.266027,59167.0,59163.0,0.15366847]
[1725314059859,0.01,59165.0,59163.0,0.15366847]
[1725314060035,0.01,59165.0,59163.0,0.28888747]
[1725314060255,0.02652024,59166.0,59163.0,0.28888747]
[1725314060256,0.03652024,59166.0,59163.0,0.28888747]
[1725314060457,0.02652024,59166.0,59163.0,0.15366847]
[1725314060913,0.01,59165.0,59163.0,0.15366847]
[1725314061117,0.16173324,59166.0,59163.0,0.15366847]
[1725314061321,0.1,59165.0,59163.0,0.15466847]
[1725314061854,0.235215,59165.0,59163.0,0.15466847]
[1725314062047,0.235215,59165.0,59163.0,0.15766847]
[1725314062528,0.235215,59165.0,59163.0,0.15666847]
[1725314063073,0.235215,59165.0,59163.0,0.16066847]
[1725314063281,0.145217,59164.0,59163.0,0.15766847]
[1725314063483,0.245217,59164.0,59163.0,0.15766847]
[1725314063689,0.245217,59164.0,59163.0,0.16066847]
[1725314064304,0.27173681,59164.0,59163.0,0.15666847]
[1725314064510,0.27173681,59164.0,59163.0,0.15866847]
[1725314064733,0.27173681,59164.0,59163.0,0.16366847]
[1725314065393,0.27173681,59164.0,59163.0,0.05646847]
[1725314065823,0.54217081,59164.0,59163.0,0.05646847]
[1725314067242,0.54217081,59164.0,59163.0,0.03773647]
[1725314067469,0.54217081,59164.0,59163.0,0.05334647]
[1725314067732,0.54217081,59164.0,59163.0,0.01]
[1725314067948,0.54217081,59164.0,59163.0,0.05334647]
[1725314068170,0.54217081,59164.0,59163.0,0.01]
[1725314068399,0.54217081,59164.0,59163.0,0.05334647]
[1725314068642,0.54298681,59164.0,59163.0,0.05334647]
[1725314069130,0.13733581,59164.0,59163.0,0.05334647]
[1725314070071,0.54298681,59164.0,59163.0,0.05334647]
[1725314070288,0.53298681,59164.0,59163.0,0.05334647]
[1725314071230,0.64948681,59164.0,59163.0,0.05334647]
[1725314071712,0.54298681,59164.0,59163.0,0.05334647]
[1725314072420,0.54298681,59164.0,59163.0,0.01]
[1725314073801,0.26255281,59164.0,59163.0,0.01]
[1725314074057,0.26255281,59164.0,59163.0,0.05334647]
[1725314074298,0.26255281,59164.0,59163.0,0.1167]
[1725314074530,0.26255281,59164.0,59163.0,0.16004647]
[1725314075976,0.26255281,59164.0,59163.0,0.05334647]
[1725314076179,0.27255281,59164.0,59163.0,0.05334647]
[1725314079498,0.54298681,59164.0,59163.0,0.05334647]
[1725314081216,0.54298681,59164.0,59163.0,0.05424407]
[1725314082075,0.76748681,59164.0,59163.0,0.05424407]
[1725314084679,0.740967,59164.0,59163.0,0.05424407]
[1725314085094,0.619267,59164.0,59163.0,0.05424407]
[1725314086130,0.619267,59164.0,59163.0,0.0108976]
[1725314086261,0.516467,59164.0,59163.0,0.0108976]
[1725314087186,0.786901,59164.0,59163.0,0.0108976]
[1725314087394,1.077335,59164.0,59163.0,0.0108976]
[1725314090194,1.316335,59164.0,59163.0,0.0108976]
[1725314092170,1.70558723,59164.0,59163.0,0.0108976]
[1725314093282,1.70558723,59164.0,59163.0,0.0058976]
[1725314093539,1.70558723,59164.0,59163.0,0.0008976]
[1725314093765,1.70658723,59164.0,59163.0,0.0008976]
[1725314094392,1.70958723,59164.0,59163.0,0.0008976]
[1725314094751,1.73611063,59164.0,59163.0,0.0008976]
[1725314097809,1.6172924,59164.0,59163.0,0.0008976]
[1725314098045,1.73811063,59164.0,59163.0,0.0008976]
[1725314098286,1.73611063,59164.0,59163.0,0.0008976]
[1725314100715,1.73589514,59164.0,59163.0,0.0008976]
[1725314101220,1.89811599,59164.0,59163.0,0.0008976]
[1725314101495,1.87815514,59164.0,59163.0,0.0008976]
[1725314101715,1.86293814,59164.0,59163.0,0.0008976]
[1725314101967,1.85183014,59164.0,59163.0,0.0008976]
[1725314102679,1.84116414,59164.0,59163.0,0.0008976]
[1725314102905,1.73789514,59164.0,59163.0,0.0008976]
[1725314103135,1.84416914,59164.0,59163.0,0.0008976]
[1725314103370,2.00832914,59164.0,59163.0,0.0008976]
[1725314104283,2.28140153,59164.0,59163.0,0.0008976]
[1725314104749,2.16215814,59164.0,59163.0,0.0008976]
[1725314106656,2.11625014,59164.0,59163.0,0.0008976]
[1725314107095,2.11922514,59164.0,59163.0,0.0008976]
[1725314107553,2.11782614,59164.0,59163.0,0.0008976]
[1725314107763,2.00832914,59164.0,59163.0,0.0008976]